[Event "Israel National League 2024"]
[Site "Israel"]
[Date "2024.02.16"]
[Round "7.27"]
[White "Manor, Ilan"]
[Black "Kargin, Arseny"]
[Result "1-0"]
[ECO "E04"]
[WhiteElo "2469"]
[BlackElo "2377"]
[Annotator "TA"]
[PlyCount "81"]
[EventDate "2024.01.07"]
[EventType "team-tourn"]
[EventCountry "ISR"]
[SourceTitle "playchess.com"]
[Source "ChessBase"]
[SourceQuality "1"]
[TimeControl "40/5400+30:1800+30"]

{[%evp 13,81,-20,-17,-31,-32,-18,32,38,30,24,75,35,54,83,57,56,133,82,100,88,160,119,145,100,161,138,118,0,0,-5,-7,-31,-35,-91,-106,-105,-25,-46,-47,-30,-25,-62,0,-50,0,0,59,-62,-43,-141,-18,-27,-12,-14,-12,-8,-17,-19,0,0,0,0,0,0,29984,29985,29987,929,29988,29989]} 1. d4 {[%emt 0:00:04]} d5 {[%emt 0:00:05]} 2. c4 {[%emt 0:00:32]} c6 {[%emt 0:00:07]} 3. Nf3 {[%emt 0:00:19]} Nf6 {[%emt 0:00:06]} 4. Nc3 {[%emt 0:00:12]} dxc4 {[%emt 0:00:07]} 5. g3 {[%emt 0:00:21]} b5 {[%emt 0:03:09]} 6. Bg2 {[%emt 0:04:08]} Bb7 {[%emt 0:01:06]} 7. O-O {[%emt 0:01:04]} e6 {[%emt 0:00:37]} 8. a4 {[%emt 0:11:43]} a6 {[%emt 0:00:52]} 9. e4 {[%emt 0:00:06][%cal Be2e4,Be4e5][%mdl 32]} Nbd7 {[%emt 0:03:56]} (9... Be7 $11) 10. e5 $14 {[%emt 0:00:47][%mdl 1024] White has compensation. White is slightly better.} Nd5 {[%emt 0:00:41]} 11. Ng5 {[%emt 0:00:04]} Be7 {[%emt 0:21:04]} (11... Bb4 $11 {remains equal.}) 12. Qh5 $16 {[%emt 0:01:32][%csl Gg5,LRe6,LRf7,LRh7][%cal Rh5f7]} g6 {[%emt 0:01:08]} 13. Qh6 {[%emt 0:00:58]} Bf8 {[%emt 1:04:02] Repels Qg7} 14. Qh3 {[%emt 0:00:11] Nce4 is the strong threat.} Be7 {[%emt 0:00:00] [#]} (14... Bb4 $14) 15. Nce4 $1 {[%emt 0:10:36][%cal Oa1a3] Ra3! would now be deadly.} (15. Nxh7 $2 Nxc3 16. bxc3 Nf8 $19) 15... h6 {[%emt 0:00:00] [#]} 16. Re1 $1 {[%emt 0:09:04][%cal Oa1a3]} Nf8 {[%emt 0:00:00]} ({Black should try} 16... Kf8) 17. Nc5 {[%emt 0:05:29]} Qb6 {[%emt 0:00:00]} 18. Bd2 {[%emt 0:04:48][%cal Oa4b5] White is much more active. The black rooks are passive.} a5 {[%emt 0:00:00]} (18... Bxc5 $2 19. dxc5 Qc7 20. Ne4 $18) (18... h5 $16 19. Nge4 Nd7) 19. Nge4 {[%emt 0:01:22][%cal Od2g5] Hoping for Bg5!} Nd7 {[%emt 0:00:00]} 20. Nxb7 {[%emt 0:33:36]} (20. Bxh6 O-O-O $11) (20. Nd6+ $16 Bxd6 21. exd6) 20... Qxb7 $11 {[%emt 0:00:00]} 21. axb5 {[%emt 0:01:40]} (21. Bxh6 b4 22. Nd6+ Bxd6 23. exd6 O-O-O $17) 21... Qxb5 {[%emt 0:00:00]} 22. Bc3 {[%emt 0:02:26]} a4 {[%emt 0:00:00]} 23. Nd6+ {[%emt 0:02:37]} (23. Bf3 $15) 23... Bxd6 $17 {[%emt 0:00:00]} 24. exd6 {[%emt 0:00:02]} O-O-O {[%emt 0:00:00]} (24... Qb8 $17 25. Bxd5 (25. Rxe6+ fxe6 26. Qxe6+ Kd8 $17) 25... cxd5 26. Rxe6+ fxe6 27. Qxe6+ Kd8 28. Qxd5 Rf8) 25. Qg4 {[%emt 0:04:16]} N7b6 $1 {[%emt 0:00:00]} 26. Qf3 {[%emt 0:00:09]} Rh7 {[%emt 0:00:00]} 27. Bf1 {[%emt 0:00:53]} Rxd6 {[%emt 0:00:00]} ({Better is} 27... Kd7 $15) 28. Ra3 {[%emt 0:00:56]} ({White should play} 28. Reb1 $11) 28... Nb4 {[%emt 0:00:00]} (28... g5 $15) 29. Qf4 $11 {[%emt 0:02:24]} Rd7 {[%emt 0:00:00]} (29... Kd7 $11) 30. Re5 {[%emt 0:01:40]} (30. b3 $1 $14 N4d5 (30... axb3 31. Rxb3 N6d5 32. Qd2 $14) 31. bxc4 Nxf4 32. cxb5) 30... N6d5 {[%emt 0:00:00]} 31. Bxb4 {[%emt 0:01:22]} (31. Qc1 $15) 31... Qxb4 {[%emt 0:00:00]} (31... Nxf4 $17 32. Rxb5 cxb5 33. gxf4 Rxd4) 32. Qc1 {[%emt 0:00:05]} Nb6 {[%emt 0:04:48]} 33. Rc5 {[%emt 0:00:03]} Rxd4 {[%emt 0:00:12]} 34. Rxc6+ {[%emt 0:00:01]} Kd7 {[%emt 0:00:58]} 35. Qe3 $1 {[%emt 0:01:45]} (35. Bg2 $2 Rh8 36. Bf3 Rc8 37. Rxc8 Nxc8 $19 (37... Kxc8 38. Qxh6 Kc7 39. Qg7 $11)) 35... Qxb2 {[%emt 0:01:11]} (35... Rd6 $5 36. Rxd6+ (36. Rc5 $2 Rd1 $17) 36... Qxd6 $11 (36... Kxd6 37. Qd4+ Ke7 38. Bxc4 $11)) 36. Rc3 $1 {[%emt 0:00:23] Really sharp!} Rd6 {[%emt 0:02:33]} 37. Rxd6+ {[%emt 0:00:29]} Kxd6 {[%emt 0:00:01]} 38. Bxc4 {[%emt 0:00:42]} Ke7 $2 {[%emt 0:00:31][%mdl 8192]} (38... Nxc4 $11 39. Rxc4 Ke7) 39. Qc5+ {[%emt 0:00:23]} Kf6 {[%emt 0:00:15]} 40. Rf3+ {[%emt 0:00:30]} Kg7 {[%emt 0:00:40] [#]} 41. Qe7 $1 {[%emt 0:30:40][%csl LRe6,LRf7] Weighted Error Value: White=0.24 (precise) /Black=0.39.  Loses game:     	---       	Black=1      Mistake:       	White=5     	Black=10     Inaccurate:     	White=2     	---        OK:         	White=7     	Black=5      Best:        	White=6     	Black=3      Strong:       	White=4     	Black=1} 1-0

[Event "Israel National League 2024"]
[Site "Israel"]
[Date "2024.02.16"]
[Round "7.29"]
[White "Soffer, Ram"]
[Black "Klenburg, Michael"]
[Result "1/2-1/2"]
[ECO "A54"]
[WhiteElo "2431"]
[BlackElo "2331"]
[Annotator "TA"]
[PlyCount "39"]
[EventDate "2024.01.07"]
[EventType "team-tourn"]
[EventCountry "ISR"]
[SourceTitle "playchess.com"]
[Source "ChessBase"]
[SourceQuality "1"]
[TimeControl "40/5400+30:1800+30"]

{[%evp 13,39,28,54,41,40,51,49,59,42,44,47,22,12,-16,0,-2,0,-8,0,0,-9,-16,-13,-20,-16,-41,-26,-35]} 1. d4 {[%emt 0:02:22]} d6 {[%emt 0:00:17]} 2. Nf3 {[%emt 0:00:18]} Nf6 {[%emt 0:00:21][%cal Bg8f6,Bf6g4,Bg4h2][%mdl 32]} 3. c4 {[%emt 0:00:06]} Nbd7 {[%emt 0:00:52]} 4. Nc3 {[%emt 0:01:52]} e5 {[%emt 0:00:30]} 5. Bg5 {[%emt 0:01:42]} Be7 {[%emt 0:00:40]} 6. e3 {[%emt 0:00:25]} c6 {[%emt 0:01:09]} 7. Qc2 {[%emt 0:01:18]} Ng4 {[%emt 0:03:19]} 8. h3 {[%emt 0:03:26] [#] Bxe7 is the strong threat.} Nh2 {[%emt 0:01:48]} 9. Rxh2 {[%emt 0:04:57] Bxe7 would now be deadly.} Bxg5 {[%emt 0:00:46]} 10. dxe5 {[%emt 0:10:34] White is slightly better.} dxe5 {[%emt 0:04:46]} 11. O-O-O {[%emt 0:02:38] aiming for Nxg5.} Bf6 {[%emt 0:00:24]} 12. h4 {[%emt 0:04:57]} Qa5 {[%emt 0:03:02]} 13. Ng5 {[%emt 0:03:24]} h6 {[%emt 1:19:06]} 14. Nge4 {[%emt 0:00:23]} Be7 {[%emt 0:00:00]} 15. Be2 {[%emt 0:05:07]} Nf6 {[%emt 0:00:00]} 16. Nxf6+ {[%emt 0:03:52]} Bxf6 {[%emt 0:00:00]} 17. Kb1 {[%emt 0:02:51]} Be6 {[%emt 0:00:00]} 18. Rhh1 $1 {[%emt 0:06:46]} Rd8 {[%emt 0:00:00]} 19. h5 {[%emt 0:03:41]} Be7 {[%emt 0:00:00]} 20. g4 {[%emt 0:05:11] Weighted Error Value: White=0.07 (flawless) /Black=0.06 (flawless) .  Inaccurate:     	White=1     	---        OK:         	White=7     	Black=6      Strong:       	White=1     	---} 1/2-1/2

[Event "Israel National League 2024"]
[Site "Israel"]
[Date "2024.02.16"]
[Round "7.30"]
[White "Pasman, Michael"]
[Black "Krayz, Alexander"]
[Result "1-0"]
[ECO "A46"]
[WhiteElo "2341"]
[BlackElo "2327"]
[Annotator "TA"]
[PlyCount "63"]
[EventDate "2024.01.07"]
[EventType "team-tourn"]
[EventCountry "ISR"]
[SourceTitle "playchess.com"]
[Source "ChessBase"]
[SourceQuality "1"]
[TimeControl "40/5400+30:1800+30"]

{[%evp 10,63,26,18,9,17,10,8,46,33,32,33,39,47,66,47,55,48,64,46,51,29,31,16,8,14,47,38,30,27,35,19,20,29,271,255,256,215,220,214,217,194,2054,1538,29983,29984,29989,29990,29990,29991,29991,29989,29990,29980,29989,29990]} 1. d4 {[%emt 0:00:06]} Nf6 {[%emt 0:00:08]} 2. Nf3 {[%emt 0:00:10]} e6 {[%emt 0:00:08]} 3. g3 {[%emt 0:00:18]} b5 {[%emt 0:00:22]} 4. Bg2 {[%emt 0:00:17]} Bb7 {[%emt 0:00:06]} 5. O-O {[%emt 0:00:17]} Be7 {[%emt 0:00:21]} 6. Bg5 {[%emt 0:00:39]} d6 {[%emt 0:02:45]} 7. Qd3 {[%emt 0:02:13]} a6 {[%emt 0:01:26]} 8. a4 {[%emt 0:08:45]} Be4 {[%emt 0:01:25] The position is equal.} 9. Qd2 {[%emt 0:21:39]} Nbd7 {[%emt 0:32:51][%cal Bb8d7,Bd7f6,Bf6e4][%mdl 32]} 10. axb5 {[%emt 0:00:56]} axb5 {[%emt 0:00:16]} 11. Nc3 {[%emt 0:01:08]} Rb8 {[%emt 0:12:20]} 12. Bxf6 {[%emt 0:19:44]} Nxf6 {[%emt 0:00:22]} 13. Nxe4 {[%emt 0:00:04]} Nxe4 {[%emt 0:00:11]} 14. Qd3 {[%emt 0:00:03]} f5 {[%emt 0:11:41]} 15. Nd2 {[%emt 0:08:49]} d5 {[%emt 0:02:20]} 16. Ra6 {[%emt 0:02:47]} Nxd2 {[%emt 0:02:58]} 17. Qxd2 {[%emt 0:00:10]} Qd7 {[%emt 0:00:44]} 18. Qe3 {[%emt 0:06:56]} Kf7 {[%emt 0:02:12]} 19. Rfa1 {[%emt 0:04:51]} c6 {[%emt 0:07:06]} 20. g4 {[%emt 0:05:09][%cal Bg3g4,Bg4f5,Bf5g6,Bg6h7][%mdl 32]} Rb7 {[%emt 0:08:44]} 21. Qh3 {[%emt 0:02:19] gxf5 is the strong threat.} Bd6 $2 {[%emt 0:06:07] [#] This move loses the game for Black.} (21... Bf6 $11 {and Black has nothing to worry.}) 22. gxf5 $18 {[%emt 0:05:07]} Rc7 {[%emt 0:01:58]} 23. Qh5+ {[%emt 0:03:40]} g6 {[%emt 0:01:45]} 24. fxg6+ {[%emt 0:00:18]} Kg7 {[%emt 0:00:05]} 25. Ra8 {[%emt 0:00:25]} Rb7 $2 {[%emt 0:03:13]} (25... Rxa8 26. Qxh7+ (26. Rxa8 h6 $18) 26... Kf6 27. Qh4+ (27. Rxa8 Qxh7 28. gxh7 Rxh7 $18) 27... Kxg6 28. Rxa8 Qh7 29. Qxh7+ Rxh7) 26. gxh7 {[%emt 0:02:34] [#] White wants to mate with Qg5+.} Bb8 {[%emt 0:00:13]} 27. Qg5+ {[%emt 0:00:33] White mates.} Kf7 {[%emt 0:01:18]} 28. R1a3 {[%emt 0:00:22]} Qe7 {[%emt 0:00:49]} 29. Qh5+ {[%emt 0:00:46]} Kg7 {[%emt 0:00:22]} 30. Qg4+ {[%emt 0:00:07]} Kf7 {[%emt 0:00:25]} 31. Rf3+ {[%emt 0:00:05]} Ke8 {[%emt 0:00:03]} 32. Qg8+ {[%emt 0:00:10] Weighted Error Value: White=0.07 (flawless) /Black=0.43.  Loses game:     	---       	Black=1      Mistake:       	---       	Black=1      Inaccurate:     	---       	Black=3      OK:         	White=7     	Black=6      Best:        	White=3     	Black=2} 1-0

[Event "Israel National League 2024"]
[Site "Israel"]
[Date "2024.02.16"]
[Round "7.31"]
[White "Motylev, Alexander"]
[Black "Levin, Guy"]
[Result "1/2-1/2"]
[ECO "B23"]
[WhiteElo "2615"]
[BlackElo "2435"]
[Annotator "TA"]
[PlyCount "131"]
[EventDate "2024.01.07"]
[EventType "team-tourn"]
[EventCountry "ISR"]
[SourceTitle "playchess.com"]
[Source "ChessBase"]
[SourceQuality "1"]
[TimeControl "40/5400+30:1800+30"]

{[%evp 40,131,-68,-69,-68,-83,-87,-85,-81,-93,-97,-90,-85,-93,-77,-95,-75,-96,-63,-66,-82,-186,-199,-200,-202,-201,-120,-125,-120,-118,-121,-116,-116,-152,-146,-132,-150,-131,-161,-143,-134,-156,-150,-170,-170,-156,-68,-84,0,-172,-169,-152,-152,-151,-96,-89,-12,-14,-9,-10,-9,-9,-9,-9,-9,-9,-9,-9,-9,-9,-9,-9,-9,-28,-10,-10,-9,-23,-16,-16,-8,-23,-8,-8,0,-24,-24,-24,0,-12,0,-37,0,-24]} 1. e4 {[%emt 0:03:01]} c5 {[%emt 0:00:05]} 2. Nc3 {[%emt 0:00:17]} Nc6 {[%emt 0:00:28]} 3. Nge2 {[%emt 0:00:08]} Nd4 {[%emt 0:00:35]} 4. d3 {[%emt 0:02:27]} g6 {[%emt 0:01:22]} 5. Nxd4 {[%emt 0:02:42]} cxd4 {[%emt 0:00:39]} 6. Ne2 {[%emt 0:00:09] B23: Closed Sicilian: Lines without g3.} Bg7 {[%emt 0:00:32]} 7. g3 {[%emt 0:00:14]} d5 {[%emt 0:03:42]} 8. Bg2 {[%emt 0:00:54]} dxe4 {[%emt 0:00:11]} 9. dxe4 {[%emt 0:00:06]} e5 {[%emt 0:01:29]} 10. O-O {[%emt 0:05:15]} Ne7 {[%emt 0:02:40]} 11. b3 $146 {[%emt 0:04:38]} ({Predecessor:} 11. Bg5 h6 12. Bxe7 Qxe7 13. c3 O-O 14. cxd4 exd4 15. Nf4 Qd6 16. Qd2 Bd7 17. Rfe1 {½-½ Hernandez Guerrero,G (2535)-Martin Del Campo C,R (2510) Linares NL m1 1993 (6)}) 11... Nc6 {[%emt 0:06:50]} 12. Ba3 {[%emt 0:07:02]} Qa5 {[%emt 0:02:47]} 13. Bb2 {[%emt 0:02:20]} Bg4 {[%emt 0:10:43]} 14. h3 {[%emt 0:11:35]} Be6 {[%emt 0:02:15]} 15. c3 {[%emt 0:09:40]} dxc3 {[%emt 0:06:58]} 16. Bxc3 {[%emt 0:02:02]} Qc5 {[%emt 0:03:37]} 17. Rc1 {[%emt 0:04:57]} Rd8 {[%emt 0:07:08]} 18. Bd2 {[%emt 0:13:15]} Qa3 {[%emt 0:04:10]} 19. Nc3 {[%emt 0:01:52]} O-O {[%emt 0:02:15]} 20. Nd5 {[%emt 0:01:42]} f5 {[%emt 0:09:17]} (20... Qxa2 21. Ra1 Qb2 22. Bc3 $15) 21. Be3 {[%emt 0:14:53]} fxe4 $1 {[%emt 0:11:21]} 22. Bc5 {[%emt 0:06:15]} Qa5 $1 {[%emt 0:01:43]} 23. Bxe4 {[%emt 0:00:10]} Rf7 {[%emt 0:00:52]} 24. b4 {[%emt 0:04:32]} Qxa2 {[%emt 0:01:37]} 25. b5 {[%emt 0:01:43]} Bxd5 {[%emt 0:01:04]} 26. bxc6 {[%emt 0:00:39]} bxc6 {[%emt 0:00:07]} 27. Qd3 {[%emt 0:00:24]} Qa4 {[%emt 0:03:47]} 28. Rfe1 {[%emt 0:00:20]} Rfd7 {[%emt 0:00:35]} 29. Ra1 {[%emt 0:00:54]} Qb5 {[%emt 0:04:10]} (29... Bxe4 30. Qxd7 Rxd7 31. Rxa4 $18) 30. Bxd5+ {[%emt 0:00:41]} (30. Qa3 $17) 30... Rxd5 $19 {[%emt 0:00:06]} 31. Qxb5 {[%emt 0:00:06]} cxb5 {[%emt 0:00:04]} 32. Bxa7 {[%emt 0:00:06] [#]} e4 {[%emt 0:02:01]} (32... b4 $1 $19 {[%mdl 512]} 33. Rab1 (33. Bb6 Rb8) 33... Rb5) 33. Rab1 $17 {[%emt 0:00:51]} Ra8 {[%emt 0:03:07]} 34. Bb6 {[%emt 0:00:28]} Ra6 {[%emt 0:02:07]} 35. Bc7 {[%emt 0:00:15]} Ra4 {[%emt 0:01:26]} 36. Kg2 {[%emt 0:00:28]} Bc3 {[%emt 0:00:48]} 37. Re2 {[%emt 0:00:24]} Rc4 {[%emt 0:00:26]} 38. Bf4 {[%emt 0:00:14]} b4 {[%emt 0:00:54]} 39. Ra2 {[%emt 0:01:39]} Rb5 {[%emt 0:02:33]} 40. Rb3 {[%emt 0:00:26]} Kf7 {[%emt 0:01:05]} 41. Ra7+ {[%emt 0:26:10]} Ke6 {[%emt 0:00:25]} 42. Ra6+ {[%emt 0:03:05]} Kd7 {[%emt 0:01:12]} (42... Kf5 $17 43. Ra8 Rbc5) 43. Ra7+ $15 {[%emt 0:00:19]} Ke6 {[%emt 0:14:45]} (43... Kc6 $17 44. Rxh7 Rb7) 44. Ra6+ $1 $19 {[%emt 0:00:18]} (44. Rxh7 $2 {is the wrong capture.} Bd4 45. h4 Rc3 $19) 44... Kd5 {[%emt 0:00:44]} 45. Rd6+ {[%emt 0:00:20]} Kc5 {[%emt 0:00:04]} 46. Rd7 {[%emt 0:00:59] [#]} Ra5 {[%emt 0:00:06]} (46... Bd4 $142 $1 {...Rc3 is the strong threat.} 47. h4 Rc3) 47. Rxh7 $17 {[%emt 0:01:37] [#]} Kb5 {[%emt 0:00:30]} ({Black should try} 47... Ra3 $1 $17 {[%cal Ra3b3]} 48. Rb1 Ra1) 48. Rb7+ $1 $11 {[%emt 0:00:50]} Ka4 {[%emt 0:00:46]} 49. Rb1 {[%emt 0:00:04]} Ka3 {[%emt 0:00:39]} 50. Bd2 $1 {[%emt 0:01:15]} Ka2 {[%emt 0:02:06]} ({Don't play} 50... Bxd2 $6 51. Ra1+ Kb3 (51... Kb2 52. Rxa5 b3 53. Rab5 $16) 52. Rxa5 $16) 51. R1xb4 {[%emt 0:00:42]} Rxb4 {[%emt 0:01:37]} 52. Bxc3 {[%emt 0:00:34]} Rxb7 {[%emt 0:00:05]} 53. Bxa5 {[%emt 0:00:03]} Kb3 {[%emt 0:01:26]} 54. Bd2 {[%emt 0:00:10]} Kc4 {[%emt 0:06:53]} 55. Be3 {[%emt 0:00:16]} Rf7 {[%emt 0:00:43]} 56. Bb6 {[%emt 0:00:24]} Rf6 {[%emt 0:00:50]} 57. Be3 {[%emt 0:00:28]} Kd3 {[%emt 0:00:22]} 58. Bc5 {[%emt 0:00:42]} Rf5 {[%emt 0:00:18]} 59. Be3 {[%emt 0:00:11]} Ke2 {[%emt 0:00:04]} 60. Bb6 {[%emt 0:00:12]} Rb5 {[%emt 0:00:37]} 61. Be3 {[%emt 0:00:23]} Rb3 {[%emt 0:00:07]} 62. Bc5 {[%emt 0:00:19]} Rf3 {[%emt 0:00:20]} 63. Bb6 {[%emt 0:00:26]} Rb3 {[%emt 0:00:14]} 64. Bc5 {[%emt 0:00:08]} Rf3 {[%emt 0:00:03]} 65. Bb6 {[%emt 0:00:06]} Rb3 {[%emt 0:00:04]} 66. Bc5 {[%emt 0:00:07]} 1/2-1/2

[Event "Israel National League 2024"]
[Site "Israel"]
[Date "2024.02.16"]
[Round "7.32"]
[White "Gorodetzky, David"]
[Black "Sokolovsky, Yahli"]
[Result "1-0"]
[ECO "B50"]
[WhiteElo "2486"]
[BlackElo "2436"]
[Annotator "TA"]
[PlyCount "89"]
[EventDate "2024.01.07"]
[EventType "team-tourn"]
[EventCountry "ISR"]
[SourceTitle "playchess.com"]
[Source "ChessBase"]
[SourceQuality "1"]
[TimeControl "40/5400+30:1800+30"]

{[%evp 10,89,16,6,16,11,11,1,8,6,15,0,0,0,0,0,0,0,0,0,10,6,48,7,24,20,47,31,27,26,47,45,50,43,94,55,96,85,156,141,122,106,119,120,157,139,241,233,230,229,271,308,377,372,403,385,387,360,358,348,337,314,416,411,422,488,504,502,547,541,540,506,1457,1383,1475,1325,1452,1439,1390,1403,1333,1261]} 1. e4 {[%emt 0:00:09]} c5 {[%emt 0:05:19]} 2. Nf3 {[%emt 0:01:24]} d6 {[%emt 0:00:07]} 3. Bb5+ {[%emt 0:00:04]} Bd7 {[%emt 0:00:28]} 4. Bxd7+ {[%emt 0:00:15]} Nxd7 {[%emt 0:00:17]} 5. c3 {[%emt 0:00:22]} Ngf6 {[%emt 0:00:36]} 6. Qe2 {[%emt 0:00:12]} e6 {[%emt 0:00:04]} 7. d4 {[%emt 0:01:39]} cxd4 {[%emt 0:00:09]} 8. cxd4 {[%emt 0:03:31]} d5 {[%emt 0:00:11] The position is equal.} 9. e5 {[%emt 0:02:51]} Bb4+ {[%emt 0:00:07]} 10. Nbd2 {[%emt 0:10:11]} Ne4 {[%emt 0:01:02]} 11. O-O {[%emt 0:01:33]} Nxd2 {[%emt 0:02:57]} 12. Bxd2 {[%emt 0:07:15]} Bxd2 {[%emt 0:02:16]} 13. Qxd2 {[%emt 0:00:15]} O-O {[%emt 0:00:14]} 14. Rfc1 {[%emt 0:01:21]} Nb6 {[%emt 0:10:45]} 15. b3 {[%emt 0:05:24]} Qd7 {[%emt 0:04:33]} 16. Ne1 {[%emt 0:05:33]} Rfc8 {[%emt 0:06:35]} 17. Nd3 {[%emt 0:01:12]} Qb5 {[%emt 0:13:10] Prevents Qa5} 18. Rc5 {[%emt 0:09:46]} Rxc5 {[%emt 0:17:59]} 19. Nxc5 {[%emt 0:00:30]} Nd7 {[%emt 0:00:20]} 20. a4 {[%emt 0:02:27]} Qc6 {[%emt 0:00:05]} 21. Rc1 {[%emt 0:00:32]} Rf8 {[%emt 0:04:02]} (21... Nxc5 $14 22. Rxc5 Qa6) 22. h3 {[%emt 0:07:06][%cal Oc5e4]} a6 {[%emt 0:10:29]} 23. Qb4 $36 {[%emt 0:09:19][%mdl 2048] White is in control.} b6 {[%emt 0:03:21]} (23... b5 $142) 24. Nd3 $16 {[%emt 0:01:31][%cal Bc5d3,Bd3b4,Bb4a6][%mdl 32]} (24. Nxa6 $2 Qxc1+ 25. Kh2 Rc8 $19) 24... Qb7 {[%emt 0:00:01]} 25. Qc3 {[%emt 0:01:00] Wards off Rc8. White has more active pieces.} Rb8 {[%emt 0:02:31]} 26. b4 $1 {[%emt 0:11:16][%cal Bb3b4,Bb4b5][%mdl 32]} Kf8 {[%emt 0:02:38] [#]} 27. b5 $1 {[%emt 0:01:41]} Kg8 {[%emt 0:07:51] [#]} (27... axb5 $16 {is a better defense.} 28. axb5 Kg8) 28. Nb4 $1 $18 {[%emt 0:01:43]} axb5 {[%emt 0:01:53]} 29. axb5 {[%emt 0:00:03][%cal Ba4b5,Bb5c6,Bc6c7][%mdl 32]} f6 {[%emt 0:03:36]} 30. Na6 {[%emt 0:06:08]} Ra8 {[%emt 0:00:33]} 31. Qc6 {[%emt 0:01:07]} Qxc6 {[%emt 0:00:11]} 32. bxc6 {[%emt 0:00:05][%mdl 4096] Endgame. KRN-KRN} Nf8 {[%emt 0:00:13] [#]} (32... Nxe5 33. dxe5 Rxa6 34. c7 $18) 33. c7 $1 {[%emt 0:01:00]} Rc8 {[%emt 0:00:04]} 34. Rc6 {[%emt 0:02:01]} Kf7 {[%emt 0:01:54]} 35. Rxb6 {[%emt 0:00:14]} Ng6 {[%emt 0:00:55] [#]} 36. f4 $1 {[%emt 0:01:34][%cal Bf2f4,Bf4f5][%mdl 544]} Ke7 {[%emt 0:00:32]} (36... Ne7 37. Kf2) 37. Rb8 {[%emt 0:03:31] White is clearly winning.} ({Less strong is} 37. f5 Nf4 38. g4 (38. Rb8 Kd7 $18) 38... Nxh3+ 39. Kg2 Ng5 $18) 37... Kd7 {[%emt 0:00:04]} 38. Nc5+ {[%emt 0:00:43]} Kxc7 {[%emt 0:00:01]} 39. Rxc8+ {[%emt 0:00:23]} (39. Nxe6+ $2 {loses.} Kxb8 40. g3 fxe5 41. fxe5 Rc3 $19 (41... Rc1+ $2 42. Kf2 $19)) 39... Kxc8 {[%emt 0:00:01]} 40. Nxe6 {[%emt 0:00:11] Threatens to win with f5. KN-KN} Kd7 {[%emt 0:01:50]} (40... fxe5 $142 41. fxe5 (41. Nxg7 Nxf4 42. dxe5 Kd7 $11) 41... Kd7 42. Nxg7 Ke7) 41. f5 {[%emt 0:08:36]} Ne7 {[%emt 0:14:59]} 42. Nxg7 {[%emt 0:01:10]} fxe5 {[%emt 0:00:09]} 43. dxe5 {[%emt 0:00:16][%cal Bd4e5,Be5e6][%mdl 32]} Nc6 {[%emt 0:00:09]} 44. e6+ {[%emt 0:01:19]} Ke7 {[%emt 0:00:29]} 45. g4 {[%emt 0:05:01] Weighted Error Value: White=0.06 (flawless) /Black=0.24 (precise) .  Mistake:       	---       	Black=4      Inaccurate:     	White=2     	Black=5      OK:         	White=14    	Black=15     Best:        	White=2     	Black=2      Strong:       	White=2     	---} 1-0